bitfinex-derivatives/quotes_SOLF0:USTF0_20250903
["timestamp","ask_amount","ask_price","bid_price","bid_amount"]
[1756928103813,200.0,210.0,209.99,9.92490875]
[1756928104415,207.35,210.0,209.99,1.99490875]
[1756928105015,200.0,210.0,209.99,1.99490875]
[1756928105207,98.31232683,210.0,209.99,9.92490875]
[1756928105405,98.31232683,210.0,209.99,10.40490875]
[1756928106106,7.35,210.05,209.99,10.40490875]
[1756928106311,7.35,210.05,210.04,1.99490875]
[1756928106511,7.35,210.07,210.02,1.99490875]
[1756928106713,7.35,210.07,210.02,2.02526611]
[1756928107913,115.64,210.08,210.02,2.02526611]
[1756928108311,7.35,210.07,210.02,2.02526611]
[1756928109313,7.35,210.08,210.02,2.02526611]
[1756928110412,7.35,210.14,210.04,9.92490875]
[1756928110618,7.35,210.11,210.04,9.92490875]
[1756928111116,7.35,210.11,210.05,0.03115743]
[1756928111711,7.35,210.11,210.05,2.02606618]
[1756928114518,7.35,210.11,210.05,0.03115743]
[1756928120324,1.99490875,210.1,210.05,0.03115743]
[1756928120724,7.32,210.09,210.05,0.03115743]
[1756928121225,7.32,210.07,210.05,0.03115743]
[1756928121427,9.31490875,210.06,210.05,0.03115743]
[1756928126925,7.32,210.04,209.89,7.64]
[1756928127223,7.32,209.94,209.89,7.64]
[1756928127429,7.32,209.92,209.85,7.64]
[1756928127629,1.99490875,209.9,209.82,7.64]
[1756928127832,7.32,209.89,209.82,9.63490875]
[1756928128819,7.32,209.89,209.84,1.99490875]
[1756928129021,7.32,209.89,209.85,7.64]
[1756928129728,7.32,209.89,209.82,9.63490875]
[1756928130530,1.99490875,209.88,209.82,7.64]
[1756928131232,1.99490875,209.88,209.82,9.63490875]
[1756928132133,1.99490875,209.88,209.82,7.64]
[1756928135939,1.99490875,209.88,209.82,9.63490875]
[1756928137539,9.31490875,209.89,209.82,9.63490875]
[1756928138343,1.99490875,209.91,209.85,7.64]
[1756928138542,9.31490875,209.92,209.85,7.64]
[1756928141334,7.32,209.92,209.85,7.64]
[1756928141743,7.32,209.92,209.86,1.99490875]
[1756928143843,1.99490875,209.91,209.85,7.64]
[1756928144641,7.89,209.9,209.85,7.64]
[1756928144837,1.99490875,209.91,209.85,7.64]
[1756928145042,7.89,209.9,209.84,9.61490875]
[1756928145445,7.89,209.9,209.84,7.62]
[1756928147047,7.89,209.96,209.84,7.62]
[1756928147245,7.89,209.93,209.84,7.62]
[1756928148547,7.89,209.93,209.8,7.62]
[1756928148949,3.12057232,209.91,209.8,7.62]
[1756928149244,3.12057232,209.88,209.8,7.62]
[1756928149447,7.89,209.87,209.76,7.62]
[1756928149843,3.12057232,209.85,209.76,7.62]
[1756928150150,7.89,209.84,209.76,7.62]
[1756928161956,7.89,209.85,209.69,7.62]
[1756928162158,7.89,209.82,209.71,7.62]
[1756928170161,7.89,209.87,209.74,7.62]
[1756928170361,7.89,209.87,209.76,7.62]
[1756928182470,3.12057232,209.85,209.76,7.62]
[1756928182666,11.14,209.91,209.72,7.76]
[1756928182667,3.12057232,209.82,209.72,7.76]
[1756928183072,7.74,209.81,209.72,7.76]
[1756928183876,10.86057232,209.81,209.72,7.76]
[1756928186476,3.12057232,209.78,209.68,319.98]
[1756928186774,3.12057232,209.78,209.68,7.76]
[1756928186775,7.74,209.77,209.68,7.76]
[1756928187272,7.74,209.77,209.62,10.88057232]
[1756928187471,7.74,209.73,209.63,7.76]
[1756928187873,7.74,209.71,209.63,7.76]
[1756928189180,7.74,209.74,209.63,7.76]
[1756928195179,3.12057232,209.72,209.63,7.76]
[1756928195584,7.74,209.71,209.63,7.76]
[1756928207588,2.00117033,209.7,209.64,7.48]
[1756928207789,2.00117033,209.73,209.66,7.48]
[1756928207990,7.51,209.7,209.66,7.48]
[1756928208186,2.00117033,209.71,209.66,7.48]
[1756928208388,7.51,209.7,209.66,7.48]
[1756928208588,7.51,209.7,209.64,7.48]
[1756928213595,7.51,209.7,209.65,2.00117033]
[1756928213895,7.51,209.7,209.66,7.48]
[1756928214996,2.00117033,209.71,209.66,7.48]
[1756928215390,7.51,209.7,209.66,7.48]
[1756928216395,2.00117033,209.71,209.66,7.48]
[1756928216592,7.51,209.7,209.64,2.00117033]
[1756928217197,2.00117033,209.69,209.63,7.48]
[1756928217595,7.51,209.68,209.63,7.48]
[1756928217795,9.51117033,209.69,209.63,7.48]
[1756928217990,7.51,209.68,209.61,9.48117033]
[1756928219501,7.51,209.68,209.62,7.48]
[1756928219998,2.00117033,209.67,209.62,7.48]
[1756928220196,7.51,209.66,209.61,7.48]
[1756928220393,7.51,209.66,209.6,2.00117033]
[1756928220601,2.00117033,209.67,209.6,2.00117033]
[1756928220791,9.51117033,209.67,209.61,7.48]
[1756928221597,9.51117033,209.67,209.6,2.00117033]
[1756928221598,7.51,209.64,209.57,9.48117033]
[1756928222399,2.00117033,209.63,209.57,7.48]
[1756928223498,7.51,209.62,209.57,7.48]
[1756928223698,2.00117033,209.63,209.57,7.48]
[1756928223897,7.51,209.62,209.57,7.48]
[1756928224793,2.00117033,209.63,209.57,7.48]
[1756928225099,7.51,209.62,209.57,7.48]
[1756928225495,2.00117033,209.63,209.57,7.48]
[1756928225698,7.51,209.62,209.57,7.48]
[1756928225994,2.00117033,209.63,209.57,7.48]
[1756928226399,7.51,209.62,209.57,7.48]
[1756928226792,2.00117033,209.63,209.57,7.48]
[1756928226993,7.51,209.62,209.52,0.83050928]
[1756928227198,7.51,209.6,209.54,2.00117033]
[1756928229201,7.51,209.6,209.54,6.65117033]
[1756928231799,2.00117033,209.57,209.49,0.83061831]
[1756928231998,2.00117033,209.53,209.45,2.00117033]
[1756928232204,2.00117033,209.55,209.49,2.00117033]
[1756928232607,9.76117033,209.55,209.49,2.00117033]
[1756928233004,7.76,209.55,209.49,2.00117033]
[1756928234007,7.76,209.55,209.5,2.00117033]
[1756928234303,7.76,209.55,209.51,4.65]
[1756928234505,7.76,209.55,209.5,2.00117033]
[1756928234904,7.76,209.55,209.51,4.65]
[1756928235102,7.76,209.55,209.5,2.00117033]
[1756928235305,7.76,209.55,209.51,4.65]
[1756928235606,7.76,209.55,209.5,2.00117033]
[1756928236201,7.76,209.55,209.51,4.65]
[1756928236502,9.76117033,209.59,209.51,4.65]
[1756928236702,9.76117033,209.59,209.53,2.00117033]
[1756928237103,7.76,209.59,209.54,4.65]
[1756928237406,7.76,209.59,209.53,2.00117033]
[1756928238008,7.76,209.59,209.53,6.65117033]
[1756928239305,7.76,209.59,209.55,2.00117033]
[1756928239500,2.00117033,209.63,209.56,4.65]
[1756928239706,11.1306706,209.62,209.56,4.65]
[1756928239905,7.76,209.62,209.56,4.65]
[1756928240605,2.00117033,209.63,209.56,4.65]
[1756928240606,3.37053343,209.61,209.56,4.65]
[1756928240805,2.00117033,209.63,209.56,4.65]
[1756928240806,7.76,209.62,209.56,4.65]
[1756928242502,2.00117033,209.61,209.55,2.00117033]
[1756928242910,7.76,209.6,209.55,2.00117033]
[1756928243509,2.00117033,209.61,209.55,2.00117033]
[1756928243910,7.76,209.6,209.55,2.00117033]
[1756928244311,2.00117033,209.61,209.55,2.00117033]
[1756928244606,7.76,209.58,209.5,2.00117033]
[1756928244811,7.76,209.58,209.5,6.65117033]
[1756928245705,7.76,209.58,209.52,2.00117033]
[1756928248008,7.76,209.58,209.5,4.65]
[1756928248212,7.76,209.58,209.52,2.00117033]
[1756928250714,7.76,209.58,209.52,6.65117033]
[1756928252115,7.76,209.58,209.54,2.00117033]
[1756928252321,7.76,209.61,209.54,2.00117033]
[1756928252510,3.37032942,209.6,209.54,2.00117033]
[1756928252715,7.76,209.61,209.54,2.00117033]
[1756928253019,3.37032901,209.6,209.54,2.00117033]
[1756928253218,7.76,209.61,209.54,2.00117033]
[1756928253514,3.37044957,209.6,209.54,2.00117033]
[1756928253716,7.76,209.61,209.54,2.00117033]
[1756928254017,7.76,209.61,209.54,6.65117033]
[1756928255419,3.37256973,209.6,209.54,6.65117033]
[1756928255620,7.76,209.61,209.54,6.65117033]
[1756928256523,7.76,209.61,209.54,4.65]
[1756928256713,7.76,209.61,209.55,2.00117033]
[1756928256917,7.76,209.61,209.54,4.65]
[1756928257220,7.76,209.61,209.55,2.00117033]
[1756928257420,3.37488739,209.6,209.54,4.65]
[1756928257621,7.76,209.61,209.54,4.65]
[1756928257622,7.76,209.61,209.55,2.00117033]
[1756928257820,7.76,209.59,209.55,2.00117033]
[1756928258021,7.76,209.61,209.55,2.00117033]
[1756928258221,7.76,209.59,209.55,6.65117033]
[1756928258821,7.76,209.61,209.55,6.65117033]
[1756928259017,3.37627979,209.6,209.55,6.65117033]
[1756928259222,7.76,209.61,209.55,6.65117033]
[1756928259418,7.76,209.59,209.55,2.00117033]
[1756928259620,81.76,209.62,209.57,2.00117033]
[1756928259818,3.37567353,209.61,209.59,6.65117033]
[1756928260018,81.76,209.62,209.59,6.65117033]
[1756928260219,3.37567151,209.61,209.59,6.65117033]
[1756928260416,11.13731223,209.6,209.55,2.00117033]
[1756928260619,7.76,209.63,209.55,2.00117033]
[1756928260820,7.76,209.61,209.55,2.00117033]
[1756928261019,7.76,209.59,209.55,6.65117033]
[1756928261220,7.76,209.63,209.55,6.65117033]
[1756928261421,7.76,209.61,209.55,6.65117033]
[1756928261722,7.76,209.59,209.55,6.65117033]
[1756928262123,7.76,209.59,209.56,4.65]
[1756928262617,7.59,209.63,209.56,4.65]
[1756928262922,3.38064413,209.62,209.56,4.65]
[1756928263120,3.38064413,209.61,209.56,4.65]
[1756928263327,3.38064413,209.6,209.55,2.00117033]
[1756928263622,7.59,209.63,209.57,2.00117033]
[1756928263823,7.59,209.61,209.58,4.65]
[1756928264019,3.3820443,209.6,209.58,4.65]
[1756928264218,7.59,209.61,209.58,4.65]
[1756928264414,3.38391191,209.6,209.58,4.65]
[1756928264615,7.59,209.61,209.58,4.65]
[1756928264822,3.3838879,209.6,209.57,2.00117033]
[1756928265018,7.59,209.65,209.58,4.65]
[1756928265324,3.38376437,209.64,209.58,4.65]
[1756928265526,3.38376437,209.63,209.58,4.65]
[1756928265722,118.36117033,209.67,209.58,4.65]
[1756928265723,10.97376437,209.62,209.58,4.65]
[1756928265923,3.38376437,209.61,209.58,4.65]
[1756928266123,7.59,209.62,209.58,4.65]
[1756928266320,3.38354926,209.61,209.57,2.00117033]
[1756928266525,7.59,209.62,209.58,4.65]
[1756928266720,3.38433857,209.61,209.58,4.65]
[1756928266920,7.59,209.62,209.58,4.65]
[1756928267120,3.38433857,209.61,209.58,4.65]
[1756928267321,3.38433857,209.6,209.58,4.65]
[1756928267519,3.38507599,209.59,209.48,12.38]
[1756928267726,3.38507599,209.58,209.53,4.65]
[1756928267925,7.59,209.59,209.53,4.65]
[1756928268125,3.38534982,209.58,209.52,7.77866622]
[1756928268328,7.59,209.59,209.52,7.77866622]
[1756928268526,3.38563503,209.58,209.52,7.77866622]
[1756928268725,7.59,209.59,209.52,7.77866622]
[1756928268927,3.38563503,209.58,209.52,7.77866622]
[1756928269128,7.59,209.59,209.52,7.77866622]
[1756928269427,3.38593731,209.58,209.52,7.77866622]
[1756928269627,7.59,209.59,209.52,7.77866622]
[1756928269928,3.38593731,209.58,209.52,7.77866622]
[1756928270125,7.59,209.59,209.52,7.77866622]
[1756928270326,3.38625836,209.58,209.52,7.77866622]
[1756928270524,7.59,209.59,209.52,7.77866622]
[1756928270725,3.38625836,209.58,209.52,7.77866622]
[1756928270928,7.59,209.59,209.52,7.77866622]
[1756928271126,3.38625836,209.58,209.52,7.77866622]
[1756928271327,7.59,209.59,209.53,4.65]
[1756928271530,3.38647734,209.58,209.52,3.12866622]
[1756928271827,7.59,209.59,209.53,4.65]
[1756928272026,3.38647734,209.58,209.52,3.12866622]
[1756928272229,7.59,209.59,209.53,4.65]
[1756928272419,7.59,209.59,209.52,3.12866622]
[1756928272420,3.38660275,209.58,209.52,3.12866622]
[1756928272623,7.59,209.59,209.53,4.65]
[1756928272924,3.38660275,209.58,209.53,4.65]
[1756928273124,3.38660275,209.57,209.53,4.65]
[1756928273331,7.59,209.64,209.53,4.65]
[1756928273530,7.59,209.62,209.53,4.65]
[1756928273730,7.59,209.6,209.53,4.65]
[1756928273931,3.38671564,209.59,209.53,4.65]
[1756928274129,3.38671564,209.58,209.52,3.12866622]
[1756928274322,3.38671564,209.57,209.52,3.12866622]
[1756928274528,7.59,209.6,209.53,4.65]
[1756928274729,3.3867841,209.59,209.53,4.65]
[1756928275032,7.59,209.57,209.53,4.65]
[1756928275226,7.59,209.64,209.53,4.65]
[1756928275431,7.59,209.62,209.53,4.65]
[1756928275730,7.59,209.6,209.53,4.65]
[1756928275928,3.38685506,209.59,209.53,4.65]
[1756928276133,3.38685506,209.58,209.52,7.77866622]
[1756928276334,3.38685506,209.57,209.52,3.12866622]
[1756928276528,7.59,209.64,209.49,4.65]
[1756928276728,7.59,209.62,209.52,7.77866622]
[1756928276930,7.59,209.6,209.52,7.77866622]
[1756928277136,3.38695163,209.59,209.52,7.77866622]
[1756928277328,3.38695163,209.58,209.52,7.77866622]
[1756928277528,3.38695163,209.57,209.52,3.12866622]
[1756928277728,7.59,209.6,209.53,4.65]
[1756928277934,3.38736709,209.59,209.53,4.65]
[1756928278136,10.97736709,209.58,209.52,3.12866622]
[1756928278338,7.59,209.56,209.52,3.12866622]
[1756928278640,7.59,209.56,209.53,4.65]
[1756928279637,8.44271464,209.65,209.53,4.65]
[1756928279836,84.97814624,209.64,209.53,4.65]
[1756928280040,7.59,209.62,209.53,4.65]
[1756928280337,7.59,209.6,209.53,4.65]
[1756928280637,3.38814624,209.59,209.53,4.65]
[1756928280837,3.38814624,209.58,209.53,4.65]
[1756928281033,3.38814624,209.57,209.53,4.65]
[1756928281236,7.59,209.63,209.53,4.65]
[1756928281538,7.59,209.61,209.53,4.65]
[1756928281740,3.38882627,209.6,209.53,4.65]
[1756928281941,3.38882627,209.59,209.53,4.65]
[1756928282241,3.38882627,209.58,209.52,3.12866622]
[1756928282439,3.38882627,209.57,209.53,4.65]
[1756928282640,7.59,209.6,209.53,7.77866622]
[1756928282938,3.38883025,209.59,209.53,7.77866622]
[1756928283142,3.38883025,209.58,209.53,3.12866622]
[1756928283344,3.38883025,209.57,209.54,4.65]
[1756928283544,7.59,209.63,209.53,7.77866622]
[1756928283745,7.59,209.61,209.53,7.77866622]
[1756928284042,3.38886314,209.6,209.53,7.77866622]
[1756928284246,3.38886314,209.59,209.53,7.77866622]
[1756928284438,3.38886314,209.58,209.53,3.12866622]
[1756928284635,3.38886314,209.57,209.53,3.12866622]
[1756928284841,7.59,209.61,209.54,4.65]
[1756928285044,3.38888552,209.6,209.54,4.65]
[1756928285245,3.38888552,209.59,209.54,4.65]
[1756928285546,10.97888552,209.58,209.53,3.12866622]
[1756928285745,3.38888552,209.57,209.53,3.12866622]
[1756928285944,7.59,209.58,209.54,4.65]
[1756928286245,3.38887326,209.57,209.53,3.12866622]
[1756928286439,7.59,209.58,209.53,3.12866622]
[1756928286742,3.38886138,209.57,209.53,3.12866622]
[1756928287044,7.59,209.58,209.53,3.12866622]
[1756928287239,3.38892282,209.57,209.53,3.12866622]
[1756928287437,7.59,209.63,209.54,4.65]
[1756928287641,7.59,209.61,209.54,4.65]
[1756928287842,3.3888499,209.6,209.54,4.65]
[1756928288042,3.3888499,209.59,209.53,3.12866622]
[1756928288243,10.9788499,209.58,209.54,4.65]
[1756928288443,3.3888499,209.57,209.54,4.65]
[1756928288643,7.59,209.58,209.54,4.65]
[1756928288842,3.38883894,209.57,209.54,4.65]
[1756928289042,7.59,209.58,209.54,4.65]
[1756928289242,3.38890171,209.57,209.54,4.65]
[1756928289449,7.59,209.58,209.54,4.65]
[1756928289750,3.388818,209.57,209.54,4.65]
[1756928290042,7.59,209.58,209.53,3.12866622]
[1756928290242,3.38810817,209.57,209.54,4.65]
[1756928290444,7.59,209.62,209.56,3.12866622]
[1756928290646,3.38789656,209.61,209.57,4.65]
[1756928290848,3.38789656,209.6,209.56,3.12866622]
[1756928291040,3.38789656,209.59,209.56,3.12866622]
[1756928291244,7.59,209.63,209.57,4.65]
[1756928291449,3.38770084,209.62,209.56,3.12866622]
[1756928291646,3.38770084,209.61,209.57,4.65]
[1756928291851,3.38770084,209.6,209.57,4.64]
[1756928292152,7.79,209.61,209.56,3.12866622]
[1756928292450,3.38727373,209.6,209.56,3.12866622]
[1756928292646,7.79,209.61,209.57,4.64]
[1756928293045,7.79,209.68,209.57,4.64]
[1756928293251,7.79,209.66,209.57,4.64]
[1756928293450,7.79,209.64,209.57,4.64]
[1756928293755,7.79,209.62,209.49,4.64]
[1756928293943,11.17653689,209.61,209.55,3.12866622]
[1756928294148,7.79,209.59,209.56,4.64]
[1756928294347,7.79,209.67,209.56,4.64]
[1756928294544,7.79,209.65,209.56,4.64]
[1756928294749,7.79,209.63,209.56,4.64]
[1756928294944,7.79,209.61,209.56,4.64]
[1756928295153,7.79,209.59,209.56,4.64]
[1756928296448,7.79,209.67,209.53,4.64]
[1756928296656,10.91866622,209.65,209.53,4.64]
[1756928296855,7.79,209.63,209.53,4.64]
[1756928297156,7.79,209.61,209.53,4.64]
[1756928297356,7.79,209.59,209.53,4.64]
[1756928297550,3.38763086,209.58,209.53,4.64]
[1756928297756,7.79,209.56,209.53,4.64]
[1756928300657,7.79,209.62,209.53,4.64]
[1756928300859,7.79,209.6,209.53,4.64]
[1756928301060,7.79,209.58,209.5,7.76866622]
[1756928301359,3.38869705,209.57,209.5,7.76866622]
[1756928301560,3.38869705,209.57,209.5,4.64]
[1756928301759,7.79,209.62,209.51,3.12866622]
[1756928301955,7.79,209.6,209.51,3.12866622]
[1756928302259,7.79,209.58,209.5,4.64]
[1756928302460,7.79,209.56,209.5,4.64]
[1756928305461,3.38931412,209.55,209.5,4.64]
[1756928305663,7.79,209.56,209.5,4.64]
[1756928305866,7.79,209.54,209.5,4.64]
[1756928306364,169.43404842,209.63,209.5,4.64]
[1756928306666,7.79,209.59,209.47,3.12866622]
[1756928306855,7.79,209.57,209.47,3.12866622]
[1756928307058,7.79,209.55,209.47,3.12866622]
[1756928307263,7.79,209.53,209.47,3.12866622]
[1756928307458,3.38914333,209.52,209.48,4.64]
[1756928307659,7.79,209.58,209.48,4.64]
[1756928307858,7.79,209.56,209.48,4.64]
[1756928308059,7.79,209.54,209.48,4.64]
[1756928308264,7.79,209.52,209.48,4.64]
[1756928308464,3.38671745,209.51,209.48,4.64]
[1756928308665,7.79,209.51,209.48,4.64]
[1756928310471,7.79,209.51,209.45,3.12866622]
[1756928310973,7.79,209.51,209.46,4.64]
[1756928311172,7.79,209.51,209.45,3.12866622]
[1756928311873,7.79,209.51,209.46,4.64]
[1756928312075,7.79,209.51,209.45,3.12866622]
[1756928312278,7.79,209.51,209.46,4.64]
[1756928312472,7.79,209.51,209.45,3.12866622]
[1756928312671,7.79,209.51,209.46,4.64]
[1756928312873,7.79,209.51,209.45,3.12866622]
[1756928313269,7.79,209.51,209.46,4.64]
[1756928313977,7.79,209.51,209.45,3.12866622]
[1756928314378,7.79,209.51,209.46,4.64]
[1756928314774,7.79,209.58,209.48,3.12866622]
[1756928314979,7.79,209.56,209.49,4.64]
[1756928315177,7.05782022,209.55,209.49,4.64]
[1756928315378,7.79,209.53,209.49,4.64]
[1756928315569,7.79,209.58,209.49,4.64]
[1756928315769,7.79,209.56,209.49,4.64]
[1756928315975,3.37989681,209.55,209.49,4.64]
[1756928316175,7.79,209.56,209.49,4.64]
[1756928316374,3.37952766,209.55,209.49,4.64]
[1756928316681,3.37955166,209.54,209.49,3.12866622]
[1756928316976,7.79,209.52,209.49,3.12866622]
[1756928317180,7.79,209.58,209.49,3.12866622]
[1756928317376,7.79,209.56,209.49,3.12866622]
[1756928317581,7.79,209.54,209.46,4.64]
[1756928317782,7.79,209.52,209.47,3.12866622]
[1756928317985,7.79,209.58,209.47,3.12866622]
[1756928318183,7.79,209.56,209.47,3.12866622]
[1756928318383,7.79,209.54,209.47,3.12866622]
[1756928318579,7.79,209.52,209.47,3.12866622]
[1756928318785,7.79,209.58,209.47,3.12866622]
[1756928318982,7.79,209.56,209.47,3.12866622]
[1756928319285,7.79,209.54,209.47,3.12866622]
[1756928319584,3.37902988,209.53,209.47,3.12866622]
[1756928319786,7.79,209.54,209.47,3.12866622]
[1756928319986,3.37800424,209.53,209.47,3.12866622]
[1756928320180,7.79,209.54,209.47,3.12866622]
[1756928320380,3.37763738,209.53,209.47,3.12866622]
[1756928320584,7.79,209.54,209.47,3.12866622]
[1756928320786,3.37763738,209.53,209.47,3.12866622]
[1756928321086,7.79,209.54,209.47,3.12866622]
[1756928321288,3.37730672,209.53,209.47,3.12866622]
[1756928321580,7.79,209.58,209.46,4.64]
[1756928321784,7.43,209.56,209.47,3.12866622]
[1756928321985,7.43,209.54,209.47,3.12866622]
[1756928322181,3.37730672,209.53,209.47,3.12866622]
[1756928322382,7.43,209.54,209.47,3.12866622]
[1756928322576,3.37696062,209.53,209.46,4.64]
[1756928322783,7.43,209.54,209.47,3.12866622]
[1756928322980,3.37701011,209.53,209.47,3.12866622]
[1756928323276,7.43,209.54,209.47,3.12866622]
[1756928323479,3.37674576,209.53,209.47,3.12866622]
[1756928323677,7.43,209.54,209.47,3.12866622]
[1756928323878,3.37674576,209.53,209.47,3.12866622]
[1756928324080,7.43,209.54,209.47,3.12866622]
[1756928324278,7.43,209.52,209.47,3.12866622]
[1756928324488,7.43,209.58,209.47,3.12866622]
[1756928324787,7.43,209.56,209.47,3.12866622]
[1756928324986,7.43,209.54,209.47,3.12866622]
[1756928325188,3.37651216,209.53,209.47,3.12866622]
[1756928325382,7.43,209.58,209.47,7.77866622]
[1756928325583,7.43,209.56,209.47,7.77866622]
[1756928325783,7.43,209.54,209.47,7.77866622]
[1756928325987,3.37644248,209.53,209.47,7.77866622]
[1756928326285,7.43,209.58,209.47,7.77866622]
[1756928326487,7.43,209.56,209.47,7.77866622]
[1756928326687,7.43,209.54,209.47,7.77866622]
[1756928326889,3.37628474,209.53,209.47,7.77866622]
[1756928327085,7.43,209.54,209.47,7.77866622]
[1756928327289,3.37611132,209.53,209.47,7.77866622]
[1756928327489,74.0,209.59,209.47,7.77866622]
[1756928327490,2.00381054,209.57,209.5,2.00381054]
[1756928327686,14.47980571,209.56,209.5,2.00381054]
[1756928327890,7.43,209.54,209.5,2.00381054]
[1756928328090,7.43,209.52,209.48,2.00381054]
[1756928328390,7.43,209.56,209.48,2.00381054]
[1756928328588,7.43,209.54,209.48,2.00381054]
[1756928328787,2.00381054,209.57,209.48,2.00381054]
[1756928328788,3.37596951,209.53,209.48,2.00381054]
[1756928328990,3.37596951,209.52,209.48,2.00381054]
[1756928329188,7.43,209.56,209.48,2.00381054]
[1756928329388,7.43,209.54,209.48,2.00381054]
[1756928329588,7.049183,209.53,209.48,2.00381054]
[1756928329790,2.00381054,209.57,209.48,2.00381054]
[1756928329791,3.37577854,209.52,209.48,2.00381054]
[1756928329990,7.43,209.55,209.48,2.00381054]
[1756928330190,7.43,209.53,209.48,2.00381054]
[1756928330488,7.43,209.51,209.48,2.00381054]
[1756928330690,7.43,209.56,209.48,2.00381054]
[1756928330992,7.43,209.54,209.48,2.00381054]
[1756928331295,7.43,209.52,209.48,2.00381054]
[1756928331495,7.43,209.56,209.48,2.00381054]
[1756928331695,7.43,209.54,209.48,2.00381054]
[1756928331893,7.43,209.52,209.48,2.00381054]
[1756928332194,7.43,209.56,209.48,2.00381054]
[1756928332395,7.43,209.54,209.48,2.00381054]
[1756928332592,7.43,209.52,209.48,2.00381054]
[1756928332792,7.43,209.56,209.48,2.00381054]
[1756928332991,7.43,209.54,209.48,2.00381054]
[1756928333187,7.43,209.52,209.48,2.00381054]
[1756928333390,7.43,209.56,209.48,2.00381054]
[1756928333588,7.43,209.54,209.48,2.00381054]
[1756928333794,7.07967075,209.53,209.48,6.65381054]
[1756928334095,7.43,209.51,209.48,6.65381054]
[1756928334296,7.43,209.56,209.48,6.65381054]
[1756928334495,7.43,209.54,209.48,6.65381054]
[1756928334694,7.07954878,209.53,209.48,6.65381054]
[1756928334892,3.37511112,209.52,209.5,6.65381054]
[1756928335097,7.43,209.57,209.5,2.00381054]
[1756928335289,7.43,209.55,209.5,2.00381054]
[1756928335495,7.43,209.53,209.5,2.00381054]
[1756928335701,7.43,209.57,209.5,2.00381054]
[1756928335898,7.43,209.55,209.5,2.00381054]
[1756928336095,7.07971615,209.54,209.5,2.00381054]
[1756928336306,7.43,209.52,209.5,2.00381054]
[1756928336495,3.37519098,209.53,209.5,2.00381054]
[1756928336496,7.43,209.57,209.5,2.00381054]
[1756928336697,7.43,209.55,209.5,2.00381054]
[1756928336991,7.08054208,209.54,209.5,2.00381054]
[1756928337301,7.43,209.52,209.5,2.00381054]
[1756928337601,7.43,209.57,209.49,2.00381054]
[1756928337901,7.43,209.55,209.49,2.00381054]
[1756928338097,7.08205195,209.54,209.49,6.65381054]
[1756928338296,7.08205195,209.53,209.49,6.65381054]
[1756928338598,10.80630884,209.52,209.49,6.65381054]
[1756928338794,7.43,209.52,209.49,6.65381054]
[1756928339202,7.43,209.57,209.49,6.65381054]
[1756928339409,7.43,209.55,209.49,6.65381054]
[1756928339612,7.43,209.53,209.49,6.65381054]
[1756928339809,3.37814567,209.52,209.49,6.65381054]
[1756928340111,7.43,209.57,209.49,6.65381054]
[1756928340310,7.43,209.55,209.49,6.65381054]
[1756928340508,7.08750734,209.54,209.49,6.65381054]
[1756928340704,7.43,209.52,209.49,6.65381054]
[1756928340908,7.43,209.55,209.49,6.65381054]
[1756928341110,7.08750734,209.54,209.49,6.65381054]
[1756928341309,7.08750734,209.53,209.49,6.65381054]
[1756928341512,7.43,209.51,209.49,6.65381054]
[1756928342510,79.31404842,209.59,209.5,4.65]